[Event "*** Titled Tuesday Blitz"]
[Site "Chess.com"]
[Date "2020.05.19"]
[Round "5"]
[White "calin_dragomirescu"]
[Black "CroissantNeuf"]
[Result "0-1"]
[WhiteElo "2206"]
[BlackElo "2358"]
[TimeControl "180+1"]
[EndTime "12:57:55 PDT"]
[Termination "CroissantNeuf won by resignation"]

1. Nf3 {[%clk 0:02:47.3]} 1... Nf6 {[%clk 0:02:57.7]} 2. c4 {[%clk 0:02:47.8]}
2... e6 {[%clk 0:02:56.9]} 3. g3 {[%clk 0:02:47.3]} 3... d5 {[%clk 0:02:54.7]}
4. Bg2 {[%clk 0:02:47.4]} 4... Nbd7 {[%clk 0:02:48.1]} 5. O-O {[%clk 0:02:47]}
5... dxc4 {[%clk 0:02:42.9]} 6. Qc2 {[%clk 0:02:44.1]} 6... a6 {[%clk
0:02:37.5]} 7. Qxc4 {[%clk 0:02:43.5]} 7... b5 {[%clk 0:02:36.8]} 8. Qc2 {[%clk
0:02:43.3]} 8... Bb7 {[%clk 0:02:35.7]} 9. d3 {[%clk 0:02:43.4]} 9... c5 {[%clk
0:02:23.6]} 10. a4 {[%clk 0:02:42.9]} 10... Rc8 {[%clk 0:02:17.9]} 11. axb5
{[%clk 0:02:39.9]} 11... axb5 {[%clk 0:02:18.8]} 12. Ra7 {[%clk 0:02:37.4]}
12... Qb6 {[%clk 0:02:16.1]} 13. Ra1 {[%clk 0:02:27.1]} 13... Be7 {[%clk
0:02:07.2]} 14. Be3 {[%clk 0:02:26.8]} 14... Nd5 {[%clk 0:02:03.5]} 15. Bg5
{[%clk 0:02:21.5]} 15... Nb4 {[%clk 0:01:59.3]} 16. Qd2 {[%clk 0:02:16.5]} 16...
f6 {[%clk 0:01:50.9]} 17. Be3 {[%clk 0:02:10.4]} 17... Nd5 {[%clk 0:01:48.5]}
18. Nc3 {[%clk 0:02:08.1]} 18... Nxe3 {[%clk 0:01:46.1]} 19. Qxe3 {[%clk
0:02:07]} 19... c4 {[%clk 0:01:13.6]} 20. d4 {[%clk 0:01:54.6]} 20... O-O {[%clk
0:00:49.5]} 21. Bh3 {[%clk 0:01:52.1]} 21... f5 {[%clk 0:00:46.8]} 22. d5 {[%clk
0:01:41.7]} 22... Qxe3 {[%clk 0:00:43.7]} 23. fxe3 {[%clk 0:01:41.2]} 23... Bxd5
{[%clk 0:00:39]} 24. e4 {[%clk 0:01:28.3]} 24... Bc5+ {[%clk 0:00:31.2]} 25. Kh1
{[%clk 0:01:25]} 25... fxe4 {[%clk 0:00:30.6]} 26. Nxd5 {[%clk 0:01:21.5]} 26...
exd5 {[%clk 0:00:21.9]} 27. Ng5 {[%clk 0:01:09]} 27... Rxf1+ {[%clk 0:00:10.3]}
28. Rxf1 {[%clk 0:01:08]} 28... Rf8 {[%clk 0:00:11.2]} 29. Be6+ {[%clk
0:00:57.5]} 29... Kh8 {[%clk 0:00:11.5]} 30. Nf7+ {[%clk 0:00:56.6]} 30... Kg8
{[%clk 0:00:11.1]} 31. Ng5+ {[%clk 0:00:51]} 31... Kh8 {[%clk 0:00:11]} 32.
Rxf8+ {[%clk 0:00:49.6]} 32... Nxf8 {[%clk 0:00:10.3]} 33. Bxd5 {[%clk
0:00:50.5]} 33... e3 {[%clk 0:00:09.7]} 34. Kg2 {[%clk 0:00:45.8]} 34... h6
{[%clk 0:00:09.4]} 35. Nf7+ {[%clk 0:00:39.5]} 35... Kh7 {[%clk 0:00:09.3]} 36.
Ne5 {[%clk 0:00:38.8]} 36... Bd4 {[%clk 0:00:09.1]} 37. Ng4 {[%clk 0:00:33.8]}
37... Bxb2 {[%clk 0:00:08.6]} 38. Nxe3 {[%clk 0:00:34]} 38... Bd4 {[%clk
0:00:08.3]} 39. Nc2 {[%clk 0:00:29.6]} 39... Bc5 {[%clk 0:00:08.2]} 40. Kf3
{[%clk 0:00:26.8]} 40... Ng6 {[%clk 0:00:07.2]} 41. Be4 {[%clk 0:00:26.2]} 41...
h5 {[%clk 0:00:06.9]} 42. g4 {[%clk 0:00:23.5]} 42... hxg4+ {[%clk 0:00:06.2]}
43. Kxg4 {[%clk 0:00:23.7]} 43... Kh6 {[%clk 0:00:07.1]} 44. h4 {[%clk 0:00:23]}
44... Ne5+ {[%clk 0:00:06.7]} 45. Kf4 {[%clk 0:00:21.9]} 45... Bd6 {[%clk
0:00:06.7]} 46. Kf5 {[%clk 0:00:21.6]} 46... b4 {[%clk 0:00:07.3]} 47. Ke6
{[%clk 0:00:21.5]} 47... b3 {[%clk 0:00:05.3]} 48. Kxd6 {[%clk 0:00:19.4]} 48...
bxc2 {[%clk 0:00:05.5]} 49. Bxc2 {[%clk 0:00:19.3]} 49... Ng4 {[%clk 0:00:06]}
50. Kd5 {[%clk 0:00:18.6]} 50... Ne3+ {[%clk 0:00:06.2]} 51. Kd4 {[%clk
0:00:17.8]} 51... Nxc2+ {[%clk 0:00:06.8]} 52. Kxc4 {[%clk 0:00:18.7]} 52...
Ne3+ {[%clk 0:00:06.8]} 53. Kd3 {[%clk 0:00:18.9]} 53... Nf5 {[%clk 0:00:07.3]}
54. Ke4 {[%clk 0:00:19]} 54... Nxh4 {[%clk 0:00:07.8]} 55. Kf4 {[%clk
0:00:19.8]} 55... Ng6+ {[%clk 0:00:08.1]} 56. Kg4 {[%clk 0:00:19.8]} 56... Nf8
{[%clk 0:00:08.7]} 57. e4 {[%clk 0:00:20.4]} 57... g5 {[%clk 0:00:08.9]} 58. Kf5
{[%clk 0:00:20]} 58... Kh5 {[%clk 0:00:09.2]} 59. e5 {[%clk 0:00:20.3]} 59... g4
{[%clk 0:00:09.5]} 60. Kf6 {[%clk 0:00:20.6]} 60... Nd7+ {[%clk 0:00:09.6]} 61.
Kf7 {[%clk 0:00:21.5]} 61... Nxe5+ {[%clk 0:00:10.4]} 0-1

[Event "*** Titled Tuesday Blitz"]
[Site "Chess.com"]
[Date "2020.05.19"]
[Round "5"]
[White "Anna_Ko_Rnd"]
[Black "AuggieWren"]
[Result "1/2-1/2"]
[WhiteElo "1650"]
[BlackElo "2271"]
[TimeControl "180+1"]
[EndTime "12:57:55 PDT"]
[Termination "Game drawn by repetition"]

1. e4 {[%clk 0:03:00.9]} 1... e6 {[%clk 0:02:57]} 2. d4 {[%clk 0:02:59.9]} 2...
d5 {[%clk 0:02:57.2]} 3. Nd2 {[%clk 0:02:58.6]} 3... Be7 {[%clk 0:02:49.2]} 4.
c3 {[%clk 0:02:55]} 4... c5 {[%clk 0:02:42.6]} 5. exd5 {[%clk 0:02:46.9]} 5...
Qxd5 {[%clk 0:02:40.9]} 6. Ngf3 {[%clk 0:02:43.5]} 6... cxd4 {[%clk 0:02:40.5]}
7. Nxd4 {[%clk 0:02:40.6]} 7... Nf6 {[%clk 0:02:39.4]} 8. Qf3 {[%clk 0:02:37.2]}
8... O-O {[%clk 0:02:37.8]} 9. Qxd5 {[%clk 0:02:35.5]} 9... Nxd5 {[%clk
0:02:38.7]} 10. Be2 {[%clk 0:02:31.7]} 10... e5 {[%clk 0:02:38.1]} 11. N4f3
{[%clk 0:02:29.9]} 11... Nc6 {[%clk 0:02:36.4]} 12. O-O {[%clk 0:02:24.9]} 12...
Nf4 {[%clk 0:02:36.4]} 13. Bb5 {[%clk 0:02:22.5]} 13... f6 {[%clk 0:02:32.6]}
14. Nb3 {[%clk 0:02:09.3]} 14... Be6 {[%clk 0:02:23.6]} 15. Bxf4 {[%clk
0:02:03.1]} 15... exf4 {[%clk 0:02:24.5]} 16. Rfe1 {[%clk 0:02:01]} 16... Kf7
{[%clk 0:02:19.3]} 17. Rad1 {[%clk 0:01:56.9]} 17... Rfd8 {[%clk 0:02:12.6]} 18.
Bxc6 {[%clk 0:01:39]} 18... bxc6 {[%clk 0:02:11.5]} 19. Nfd4 {[%clk 0:01:37.4]}
19... Bd5 {[%clk 0:02:07.9]} 20. c4 {[%clk 0:01:30.2]} 20... Bxc4 {[%clk
0:01:58.6]} 21. Nxc6 {[%clk 0:01:30]} 21... Rxd1 {[%clk 0:01:57.6]} 22. Rxd1
{[%clk 0:01:29.8]} 22... Bxb3 {[%clk 0:01:32.3]} 23. axb3 {[%clk 0:01:29]} 23...
Bc5 {[%clk 0:01:19.1]} 24. Rd7+ {[%clk 0:01:21.9]} 24... Kg6 {[%clk 0:01:13.8]}
25. Kf1 {[%clk 0:01:11.9]} 25... Rc8 {[%clk 0:00:55.8]} 26. Nxa7 {[%clk
0:01:08.4]} 26... Bxa7 {[%clk 0:00:54.4]} 27. Rxa7 {[%clk 0:01:08.3]} 27... Rc1+
{[%clk 0:00:42.3]} 28. Ke2 {[%clk 0:01:07.9]} 28... Rc2+ {[%clk 0:00:42.6]} 29.
Kf3 {[%clk 0:01:05.6]} 29... Rxb2 {[%clk 0:00:42.6]} 30. Rb7 {[%clk 0:01:05.8]}
30... Kg5 {[%clk 0:00:38.8]} 31. Rxg7+ {[%clk 0:00:58.7]} 31... Kf5 {[%clk
0:00:39.1]} 32. Rb7 {[%clk 0:00:58.1]} 32... h5 {[%clk 0:00:37.2]} 33. h3 {[%clk
0:00:52.7]} 33... h4 {[%clk 0:00:36.8]} 34. Rb5+ {[%clk 0:00:46.9]} 34... Kg6
{[%clk 0:00:36.3]} 35. Rb4 {[%clk 0:00:43.1]} 35... f5 {[%clk 0:00:34.9]} 36. g3
{[%clk 0:00:30.4]} 36... fxg3 {[%clk 0:00:26.7]} 37. fxg3 {[%clk 0:00:30.2]}
37... hxg3 {[%clk 0:00:23.5]} 38. Kxg3 {[%clk 0:00:29.9]} 38... Kg5 {[%clk
0:00:23.8]} 39. h4+ {[%clk 0:00:26.9]} 39... Kg6 {[%clk 0:00:23.1]} 40. Kf4
{[%clk 0:00:24.5]} 40... Rf2+ {[%clk 0:00:20.3]} 41. Kg3 {[%clk 0:00:24.4]}
41... Rb2 {[%clk 0:00:20.2]} 42. Rb8 {[%clk 0:00:23.9]} 42... Rb1 {[%clk
0:00:19.8]} 43. b4 {[%clk 0:00:23.3]} 43... Kh5 {[%clk 0:00:15]} 44. b5 {[%clk
0:00:22.2]} 44... Rb3+ {[%clk 0:00:14.9]} 45. Kg2 {[%clk 0:00:21]} 45... Kxh4
{[%clk 0:00:15.1]} 46. b6 {[%clk 0:00:20]} 46... Kg4 {[%clk 0:00:15.5]} 47. b7
{[%clk 0:00:19.8]} 47... Rb2+ {[%clk 0:00:15.6]} 48. Kf1 {[%clk 0:00:19.5]}
48... Kf4 {[%clk 0:00:15.4]} 49. Ke1 {[%clk 0:00:18.2]} 49... Rb1+ {[%clk
0:00:15.3]} 50. Kd2 {[%clk 0:00:17.7]} 50... Rb6 {[%clk 0:00:15.3]} 51. Kd3
{[%clk 0:00:17.4]} 51... Rb1 {[%clk 0:00:15.2]} 52. Kd4 {[%clk 0:00:17.4]} 52...
Rb4+ {[%clk 0:00:13.6]} 53. Kc5 {[%clk 0:00:17.3]} 53... Rb1 {[%clk 0:00:13.7]}
54. Kc6 {[%clk 0:00:17.4]} 54... Rc1+ {[%clk 0:00:13.9]} 55. Kb6 {[%clk
0:00:16.9]} 55... Rb1+ {[%clk 0:00:14.1]} 56. Kc6 {[%clk 0:00:17.2]} 56... Rc1+
{[%clk 0:00:14.3]} 57. Kb6 {[%clk 0:00:17.5]} 57... Rb1+ {[%clk 0:00:14.6]} 58.
Kc6 {[%clk 0:00:17.8]} 1/2-1/2

[Event "*** Titled Tuesday Blitz"]
[Site "Chess.com"]
[Date "2020.05.19"]
[Round "5"]
[White "MartinCerveny"]
[Black "AEMEffi"]
[Result "1/2-1/2"]
[WhiteElo "2442"]
[BlackElo "2301"]
[TimeControl "180+1"]
[EndTime "12:57:58 PDT"]
[Termination "Game drawn by agreement"]

1. d4 {[%clk 0:03:00.9]} 1... Nf6 {[%clk 0:02:59.6]} 2. c4 {[%clk 0:03:00.4]}
2... g6 {[%clk 0:03:00.2]} 3. Nc3 {[%clk 0:02:59.8]} 3... d5 {[%clk 0:03:01.1]}
4. cxd5 {[%clk 0:02:59.1]} 4... Nxd5 {[%clk 0:03:02]} 5. e4 {[%clk 0:02:59.7]}
5... Nxc3 {[%clk 0:03:02.3]} 6. bxc3 {[%clk 0:03:00.6]} 6... Bg7 {[%clk
0:03:03.2]} 7. Nf3 {[%clk 0:03:00.6]} 7... O-O {[%clk 0:03:03.6]} 8. Be2 {[%clk
0:03:00.3]} 8... b6 {[%clk 0:03:02.5]} 9. O-O {[%clk 0:02:59.5]} 9... Bb7 {[%clk
0:03:03.1]} 10. Qd3 {[%clk 0:02:59]} 10... Nd7 {[%clk 0:03:01.9]} 11. Bg5 {[%clk
0:02:57.5]} 11... c5 {[%clk 0:02:59.5]} 12. e5 {[%clk 0:02:54.5]} 12... Qc7
{[%clk 0:02:36.6]} 13. Qe3 {[%clk 0:02:50.8]} 13... Rae8 {[%clk 0:02:29.1]} 14.
Bh6 {[%clk 0:02:49.9]} 14... e6 {[%clk 0:02:23.7]} 15. Bxg7 {[%clk 0:02:49.1]}
15... Kxg7 {[%clk 0:02:24.6]} 16. h4 {[%clk 0:02:45.7]} 16... Bxf3 {[%clk
0:01:55.4]} 17. Bxf3 {[%clk 0:02:44.5]} 17... f6 {[%clk 0:01:55.9]} 18. exf6+
{[%clk 0:02:41.6]} 18... Nxf6 {[%clk 0:01:52.7]} 19. Rfe1 {[%clk 0:02:37.5]}
19... Nd5 {[%clk 0:01:40.2]} 20. Bxd5 {[%clk 0:02:33.3]} 20... exd5 {[%clk
0:01:41.1]} 21. Qg5 {[%clk 0:02:25.8]} 21... cxd4 {[%clk 0:01:33.4]} 22. cxd4
{[%clk 0:02:21]} 22... Qd6 {[%clk 0:01:19.5]} 23. Re5 {[%clk 0:02:13.6]} 23...
Rxe5 {[%clk 0:01:03.7]} 24. dxe5 {[%clk 0:02:14.5]} 24... Qc5 {[%clk 0:00:59.5]}
25. Qg3 {[%clk 0:02:06.2]} 25... d4 {[%clk 0:00:52]} 26. Re1 {[%clk 0:02:02]}
26... Qc3 {[%clk 0:00:49.3]} 27. f3 {[%clk 0:01:45.5]} 27... d3 {[%clk
0:00:43.5]} 28. e6 {[%clk 0:01:45.7]} 28... d2 {[%clk 0:00:42.6]} 29. Rd1 {[%clk
0:01:43.7]} 29... Re8 {[%clk 0:00:29.7]} 30. Qd6 {[%clk 0:01:41.2]} 30... Qe3+
{[%clk 0:00:27.1]} 31. Kh2 {[%clk 0:01:39.3]} 31... Rxe6 {[%clk 0:00:25.2]} 32.
Qxd2 {[%clk 0:01:34.2]} 32... Qxd2 {[%clk 0:00:18]} 33. Rxd2 {[%clk 0:01:35.1]}
33... Re7 {[%clk 0:00:13.5]} 34. Rd6 {[%clk 0:01:33.8]} 34... Rb7 {[%clk
0:00:13]} 35. g4 {[%clk 0:01:32]} 35... a5 {[%clk 0:00:12.2]} 36. a4 {[%clk
0:01:31.5]} 36... b5 {[%clk 0:00:11.6]} 37. axb5 {[%clk 0:01:31.4]} 37... Rxb5
{[%clk 0:00:11.4]} 38. Ra6 {[%clk 0:01:32.1]} 38... h5 {[%clk 0:00:07.5]} 39. g5
{[%clk 0:01:24.5]} 39... Rf5 {[%clk 0:00:07.4]} 40. Kg3 {[%clk 0:01:23.6]} 40...
Kh7 {[%clk 0:00:07.3]} 41. Ra7+ {[%clk 0:01:22.6]} 41... Kg8 {[%clk 0:00:07.3]}
42. Kf2 {[%clk 0:01:21]} 42... Kf8 {[%clk 0:00:06.9]} 43. Ke3 {[%clk 0:01:20.5]}
43... Kg8 {[%clk 0:00:07]} 44. Ke4 {[%clk 0:01:19.8]} 44... Kf8 {[%clk
0:00:07.2]} 45. f4 {[%clk 0:01:01.8]} 45... Kg8 {[%clk 0:00:06.6]} 46. Rc7
{[%clk 0:01:01]} 46... Rb5 {[%clk 0:00:05]} 47. Rc4 {[%clk 0:00:58.2]} 47... Kf7
{[%clk 0:00:02.3]} 48. Kd3 {[%clk 0:00:57.3]} 48... Rf5 {[%clk 0:00:01.8]} 49.
Kc3 {[%clk 0:00:56.2]} 49... Rd5 {[%clk 0:00:02.4]} 50. Re4 {[%clk 0:00:54]}
50... Rc5+ {[%clk 0:00:02.5]} 51. Kb3 {[%clk 0:00:53.7]} 51... Rd5 {[%clk
0:00:03]} 52. Ka4 {[%clk 0:00:54.1]} 52... Rd3 {[%clk 0:00:02.4]} 53. Rc4 {[%clk
0:00:52.2]} 53... Rh3 {[%clk 0:00:02.8]} 54. Rc7+ {[%clk 0:00:51.8]} 54... Kf8
{[%clk 0:00:02.8]} 55. Kxa5 {[%clk 0:00:46.6]} 55... Rxh4 {[%clk 0:00:02.4]} 56.
Rc4 {[%clk 0:00:47.2]} 56... Rg4 {[%clk 0:00:02]} 57. Kb5 {[%clk 0:00:46]} 57...
h4 {[%clk 0:00:02.5]} 58. Kc5 {[%clk 0:00:46.3]} 58... h3 {[%clk 0:00:03.1]} 59.
Kd5 {[%clk 0:00:46]} 59... h2 {[%clk 0:00:03.6]} 60. Rc8+ {[%clk 0:00:45.3]}
60... Kf7 {[%clk 0:00:03]} 61. Rh8 {[%clk 0:00:43.9]} 61... Rxf4 {[%clk
0:00:03.4]} 62. Rxh2 {[%clk 0:00:42.9]} 62... Rf5+ {[%clk 0:00:04.3]} 63. Ke4
{[%clk 0:00:41.6]} 63... Rxg5 {[%clk 0:00:05.2]} 64. Kf4 {[%clk 0:00:40.4]}
64... Rf5+ {[%clk 0:00:06.1]} 65. Kg4 {[%clk 0:00:40.3]} 65... Kf6 {[%clk
0:00:05.6]} 1/2-1/2

[Event "*** Titled Tuesday Blitz"]
[Site "Chess.com"]
[Date "2020.05.19"]
[Round "5"]
[White "Azatic"]
[Black "spectralsoul"]
[Result "1-0"]
[WhiteElo "2624"]
[BlackElo "2841"]
[TimeControl "180+1"]
[EndTime "12:58:01 PDT"]
[Termination "Azatic won by resignation"]

1. e4 {[%clk 0:03:00.9]} 1... g6 {[%clk 0:03:00]} 2. d4 {[%clk 0:02:59.8]} 2...
Bg7 {[%clk 0:03:00.5]} 3. Nc3 {[%clk 0:02:59.7]} 3... c6 {[%clk 0:03:00.2]} 4.
f4 {[%clk 0:02:58.9]} 4... d5 {[%clk 0:02:56.8]} 5. e5 {[%clk 0:02:58.8]} 5...
Nh6 {[%clk 0:02:56.8]} 6. Nf3 {[%clk 0:02:57.9]} 6... O-O {[%clk 0:02:51.3]} 7.
Be2 {[%clk 0:02:57.6]} 7... Bg4 {[%clk 0:02:45.7]} 8. O-O {[%clk 0:02:54]} 8...
f6 {[%clk 0:02:37.1]} 9. h3 {[%clk 0:02:45.2]} 9... Bxf3 {[%clk 0:02:36.3]} 10.
Bxf3 {[%clk 0:02:46.1]} 10... e6 {[%clk 0:02:29.8]} 11. Ne2 {[%clk 0:02:32]}
11... c5 {[%clk 0:02:27.3]} 12. exf6 {[%clk 0:02:25]} 12... Qxf6 {[%clk
0:02:26.7]} 13. dxc5 {[%clk 0:02:24]} 13... Na6 {[%clk 0:02:23.2]} 14. Be3
{[%clk 0:02:10.5]} 14... Nf5 {[%clk 0:02:22.5]} 15. Bf2 {[%clk 0:02:10.1]} 15...
Qxb2 {[%clk 0:02:17.2]} 16. Rb1 {[%clk 0:02:06.4]} 16... Qa3 {[%clk 0:02:15]}
17. Rxb7 {[%clk 0:01:33.3]} 17... Ne3 {[%clk 0:02:14.3]} 18. Rxg7+ {[%clk
0:01:24.5]} 18... Kxg7 {[%clk 0:01:49.9]} 19. Qd4+ {[%clk 0:01:23.4]} 19... Kg8
{[%clk 0:01:35.8]} 20. Bxe3 {[%clk 0:01:22.4]} 20... Rac8 {[%clk 0:01:35.1]} 21.
Qe5 {[%clk 0:01:04.9]} 21... Nxc5 {[%clk 0:01:34.6]} 22. Bd4 {[%clk 0:01:04.3]}
22... Kf7 {[%clk 0:01:19.1]} 23. Qg7+ {[%clk 0:01:00.5]} 23... Ke8 {[%clk
0:01:19.2]} 24. Qxh7 {[%clk 0:01:00.3]} 24... Qxa2 {[%clk 0:01:12.9]} 25. Qxg6+
{[%clk 0:00:55.8]} 25... Ke7 {[%clk 0:01:13.3]} 26. Ra1 {[%clk 0:00:48]} 26...
Qc4 {[%clk 0:01:06.8]} 27. Rxa7+ {[%clk 0:00:40.5]} 27... Kd6 {[%clk 0:01:07.7]}
28. Qg7 {[%clk 0:00:38.9]} 28... Kc6 {[%clk 0:00:57.7]} 29. Kh2 {[%clk
0:00:36.8]} 29... Rg8 {[%clk 0:00:55.1]} 30. Qe7 {[%clk 0:00:31.9]} 30... Rge8
{[%clk 0:00:54]} 31. Qxc5+ {[%clk 0:00:25.4]} 31... Qxc5 {[%clk 0:00:53.7]} 32.
Bxc5 {[%clk 0:00:26.3]} 32... Kxc5 {[%clk 0:00:54.6]} 33. c3 {[%clk 0:00:26]}
33... Kd6 {[%clk 0:00:52.8]} 34. h4 {[%clk 0:00:25.9]} 34... Ra8 {[%clk
0:00:51.4]} 35. Rxa8 {[%clk 0:00:23.2]} 35... Rxa8 {[%clk 0:00:52.3]} 36. h5
{[%clk 0:00:24.1]} 36... Ra2 {[%clk 0:00:47.9]} 37. g4 {[%clk 0:00:22.4]} 37...
Ke7 {[%clk 0:00:42.9]} 38. Kg3 {[%clk 0:00:22.1]} 38... Kf7 {[%clk 0:00:43.3]}
39. g5 {[%clk 0:00:21.8]} 39... Rd2 {[%clk 0:00:39.9]} 40. h6 {[%clk 0:00:20.2]}
40... Rd3 {[%clk 0:00:39.2]} 41. Kf2 {[%clk 0:00:20.3]} 41... Kg6 {[%clk
0:00:38.8]} 42. Ng3 {[%clk 0:00:20.4]} 42... Rxc3 {[%clk 0:00:34.8]} 43. Bh5+
{[%clk 0:00:20]} 43... Kh7 {[%clk 0:00:35.3]} 44. Bf7 {[%clk 0:00:19.9]} 44...
Rc2+ {[%clk 0:00:26.9]} 45. Kf3 {[%clk 0:00:19.9]} 45... Rc3+ {[%clk 0:00:27.3]}
46. Kg4 {[%clk 0:00:20]} 46... Re3 {[%clk 0:00:27.7]} 47. Nh5 {[%clk 0:00:19.4]}
47... Re1 {[%clk 0:00:19.1]} 48. Nf6+ {[%clk 0:00:19.3]} 48... Kh8 {[%clk
0:00:20]} 49. g6 {[%clk 0:00:19]} 49... Rg1+ {[%clk 0:00:19.4]} 50. Kf3 {[%clk
0:00:19]} 50... d4 {[%clk 0:00:20.1]} 51. Kf2 {[%clk 0:00:15.6]} 51... Rxg6
{[%clk 0:00:11.3]} 52. Bxg6 {[%clk 0:00:16.5]} 52... e5 {[%clk 0:00:11.6]} 53.
fxe5 {[%clk 0:00:11.7]} 53... d3 {[%clk 0:00:11.8]} 54. Nh5 {[%clk 0:00:11.9]}
54... d2 {[%clk 0:00:11.4]} 55. Ke2 {[%clk 0:00:12.2]} 55... Kg8 {[%clk
0:00:12.3]} 56. Kxd2 {[%clk 0:00:11.9]} 56... Kh8 {[%clk 0:00:13.2]} 57. e6
{[%clk 0:00:11.1]} 57... Kg8 {[%clk 0:00:14.1]} 58. e7 {[%clk 0:00:10.8]} 1-0

[Event "*** Titled Tuesday Blitz"]
[Site "Chess.com"]
[Date "2020.05.19"]
[Round "5"]
[White "themind1hunter"]
[Black "GjakanTati"]
[Result "1-0"]
[WhiteElo "2395"]
[BlackElo "2624"]
[TimeControl "180+1"]
[EndTime "12:58:02 PDT"]
[Termination "themind1hunter won by resignation"]

1. e4 {[%clk 0:02:05.5]} 1... e5 {[%clk 0:02:58.1]} 2. Nf3 {[%clk 0:02:05.2]}
2... Nc6 {[%clk 0:02:58.1]} 3. Bb5 {[%clk 0:02:05.1]} 3... Nf6 {[%clk
0:02:58.2]} 4. O-O {[%clk 0:02:04.7]} 4... Nxe4 {[%clk 0:02:58.3]} 5. Re1 {[%clk
0:02:04.4]} 5... Nd6 {[%clk 0:02:58.5]} 6. Nxe5 {[%clk 0:02:03.4]} 6... Be7
{[%clk 0:02:58.7]} 7. Bf1 {[%clk 0:02:02.7]} 7... Nxe5 {[%clk 0:02:59.2]} 8.
Rxe5 {[%clk 0:02:02.7]} 8... O-O {[%clk 0:02:59.8]} 9. d4 {[%clk 0:02:03.3]}
9... Bf6 {[%clk 0:03:00.3]} 10. Re1 {[%clk 0:02:03.8]} 10... Re8 {[%clk
0:02:57.8]} 11. Rxe8+ {[%clk 0:01:54.9]} 11... Nxe8 {[%clk 0:02:58.7]} 12. d5
{[%clk 0:01:55.6]} 12... d6 {[%clk 0:02:53.2]} 13. Nd2 {[%clk 0:01:52.7]} 13...
Bf5 {[%clk 0:02:51]} 14. g3 {[%clk 0:01:51.9]} 14... g6 {[%clk 0:02:41.1]} 15.
c3 {[%clk 0:01:50.8]} 15... Ng7 {[%clk 0:02:37.8]} 16. Bg2 {[%clk 0:01:50]}
16... Qe7 {[%clk 0:02:36.8]} 17. Nc4 {[%clk 0:01:45.1]} 17... h5 {[%clk
0:02:32]} 18. Be3 {[%clk 0:01:39.2]} 18... h4 {[%clk 0:02:30.9]} 19. Na5 {[%clk
0:01:36.8]} 19... b6 {[%clk 0:02:17.8]} 20. Nc6 {[%clk 0:01:31.8]} 20... Qd7
{[%clk 0:02:18]} 21. Nd4 {[%clk 0:01:20.4]} 21... Bg4 {[%clk 0:02:08.2]} 22. Qf1
{[%clk 0:01:13.9]} 22... Re8 {[%clk 0:02:03.3]} 23. h3 {[%clk 0:01:10.2]} 23...
Bxd4 {[%clk 0:01:40.6]} 24. Bxd4 {[%clk 0:00:59.5]} 24... Be2 {[%clk 0:01:40.2]}
25. Qc1 {[%clk 0:00:59.9]} 25... Nf5 {[%clk 0:01:35.9]} 26. Bf6 {[%clk
0:00:57.3]} 26... hxg3 {[%clk 0:01:05.7]} 27. fxg3 {[%clk 0:00:56.9]} 27... Kh7
{[%clk 0:01:04.1]} 28. Qg5 {[%clk 0:00:51.8]} 28... Re3 {[%clk 0:00:24.4]} 29.
g4 {[%clk 0:00:47.9]} 29... Rg3 {[%clk 0:00:23.9]} 30. Qf4 {[%clk 0:00:36.7]}
30... Bf3 {[%clk 0:00:21.5]} 31. gxf5 {[%clk 0:00:30.5]} 31... Rxg2+ {[%clk
0:00:21.2]} 32. Kf1 {[%clk 0:00:26.3]} 32... Qxf5 {[%clk 0:00:20.5]} 33. Qh4+
{[%clk 0:00:24.5]} 33... Qh5 {[%clk 0:00:18.8]} 34. Qxh5+ {[%clk 0:00:20.9]}
34... gxh5 {[%clk 0:00:19.7]} 35. c4 {[%clk 0:00:21.1]} 35... Rh2 {[%clk
0:00:17.6]} 36. Re1 {[%clk 0:00:19.8]} 36... Rxh3 {[%clk 0:00:16.1]} 37. Re7
{[%clk 0:00:19]} 37... Kg6 {[%clk 0:00:16.5]} 38. Bc3 {[%clk 0:00:18.9]} 38...
Rh1+ {[%clk 0:00:14.4]} 39. Kf2 {[%clk 0:00:18.6]} 39... Bg4 {[%clk 0:00:14.5]}
40. Rxc7 {[%clk 0:00:19]} 40... h4 {[%clk 0:00:15]} 41. Rc6 {[%clk 0:00:18.6]}
41... Rh2+ {[%clk 0:00:12.7]} 42. Kg1 {[%clk 0:00:18]} 42... Rc2 {[%clk
0:00:12.3]} 43. Rxd6+ {[%clk 0:00:18.9]} 43... Kh5 {[%clk 0:00:11.4]} 44. Rd8
{[%clk 0:00:18]} 44... Bf3 {[%clk 0:00:10.8]} 45. Rh8+ {[%clk 0:00:16.9]} 45...
Kg4 {[%clk 0:00:11.1]} 46. d6 {[%clk 0:00:16.5]} 46... h3 {[%clk 0:00:10.7]} 47.
d7 {[%clk 0:00:16.2]} 47... Rc1+ {[%clk 0:00:04.9]} 48. Kf2 {[%clk 0:00:16.3]}
48... h2 {[%clk 0:00:03.9]} 49. d8=Q {[%clk 0:00:13.2]} 49... Rc2+ {[%clk
0:00:03.7]} 50. Ke3 {[%clk 0:00:13.3]} 50... Re2+ {[%clk 0:00:04.6]} 51. Kd4
{[%clk 0:00:12.3]} 51... h1=Q {[%clk 0:00:04.7]} 52. Qg8+ {[%clk 0:00:10]} 52...
Kf5 {[%clk 0:00:04.3]} 53. Rxh1 {[%clk 0:00:10.3]} 53... Bxh1 {[%clk 0:00:04.9]}
54. Qh7+ {[%clk 0:00:09]} 54... Kg4 {[%clk 0:00:05.8]} 55. Qxh1 {[%clk
0:00:09.5]} 1-0